Cogmind - Beta 13 @@@ ROGUE MODE // 2024.05.07 @ 15:51:38 Player: Vox Result: Destroyed by G-34 Mercenary with Small Laser Performance ------------- Evolutions (0) 0 Regions Visited (2) 400 Robots Destroyed (28) 140 Value Destroyed (753) 753 Prototype IDs (2) 40 Alien Tech Used (0) 0 Bonus (0) 0 TOTAL SCORE: 1333 Bonus ------- None Cogmind --------- Core Integrity 0/250 Matter 300/300 Energy 160/160 System Corruption 0% Temperature Cool (6) Movement Treading (160) Location -10/Mines Parts ------- > --- POWER (1) -------- Light Nuclear Core > --- PROPULSION (2) --- Light Treads Light Treads > --- UTILITY (2) ------ Heat Sink Large Storage Unit > --- WEAPON (2) ------- Medium Laser > --- INVENTORY (15) --- Ion Engine Light Ion Engine Light Nuclear Core Light Treads Light Treads Aluminum Leg Wheel Improved Heat Sink Large Matter Pod (150) Structural Scanner Sensor Array Improved Terrain Scanner Small Laser Light Assault Rifle Light Cannon Peak State ------------ > --- POWER ------------ Light Nuclear Core > --- PROPULSION ------- Light Treads Light Treads > --- UTILITY ---------- Heat Sink Large Storage Unit > --- WEAPON ----------- Medium Laser Beam Cannon > --- INVENTORY -------- Ion Engine Light Ion Engine Light Nuclear Core Light Treads Light Treads Aluminum Leg Wheel Improved Heat Sink Large Matter Pod Structural Scanner Sensor Array Improved Terrain Scanner Small Laser Light Assault Rifle Light Cannon [Rating: 11] Favorites ----------- Power Light Nuclear Core Engine Light Ion Engine Power Core Light Nuclear Core Propulsion Light Treads Treads Light Treads Utility Large Storage Unit Device Heat Sink Storage Large Storage Unit Protection Light Armor Plating Weapon Medium Laser Energy Gun Medium Laser Energy Cannon Beam Cannon Ballistic Gun Assault Rifle Build | -11 -10 -10 ------- Run | Yrd Mat Min Slots Evolved . | . . . Power . | . . . Propulsion . | . . . Utility . | . . . Weapon . | . . . Parts Attached 20 | 7 13 . Power 4 | 1 3 . Engine 3 | 1 2 . Core 1 | . 1 . Reactor . | . . . Propulsion 4 | 2 2 . Treads 4 | 2 2 . Leg . | . . . Wheel . | . . . Hover . | . . . Flight . | . . . Utility 6 | 2 4 . Device 2 | 1 1 . Storage 2 | 1 1 . Processor . | . . . Hackware . | . . . Protection 2 | . 2 . Artifact . | . . . Weapon 6 | 2 4 . Energy Gun 2 | 1 1 . Energy Cannon 1 | . 1 . Ballistic Gun 3 | 1 2 . Ballistic Cannon . | . . . Launcher . | . . . Special Weapon . | . . . Impact Weapon . | . . . Slashing Weapon . | . . . Piercing Weapon . | . . . Special Melee Weapon . | . . . Unidentified Prototypes . | . . . Parts Lost 2 | . 1 1 Power . | . . . Propulsion . | . . . Utility 1 | . 1 . Weapon 1 | . . 1 Highest Loss Streak 1 | . 1 1 To Critical Strikes . | . . . Average Slot Usage (%) 97 | . 100 92 Engine 6 | . 8 . Core 7 | . 5 14 Treads 28 | . 28 28 Device 6 | . 3 14 Storage 14 | . 14 14 Protection 7 | . 10 . Energy Gun 11 | . 11 14 Energy Cannon 8 | . 8 7 Ballistic Gun 5 | . 8 . Naked Turns . | . . . Heaviest Build 33 | 12 33 31 Greatest Support 40 | 40 40 40 Greatest Overweight (x) . | . . . Average Overweight (x) . | . . . Largest Inventory Capacity 15 | 8 15 15 Average Capacity 13 | 6 13 15 Most Carried 15 | 7 15 15 Average Carried 12 | 5 11 15 Final Capacity 15 | 8 15 15 Final Carried 15 | 7 15 15 Class Distribution -------------------- 100% | Mutant Dominant Class ---------------- Mutant | -10/Materials Mutant | -10/Mines Resources | -11 -10 -10 ----------- Run | Yrd Mat Min Matter Collected 710 | 262 448 . Remotely . | . . . Salvage Created 976 | 65 684 227 Parts 50 | 4 37 9 Haulers Intercepted 1 | . 1 . Recyclers Shooed . | . . . Parts Field Recycled . | . . . Retrieved Matter . | . . . Parts Self-Destructed . | . . . Prevented . | . . . Kills | -11 -10 -10 ------- Run | Yrd Mat Min Combat Hostiles Destroyed 21 | . 14 7 Guns 15 | . 10 5 Cannons 6 | . 4 2 Classes Destroyed 7 | 2 4 1 Builder 1 | . 1 . Tunneler 2 | 1 1 . Hauler 1 | . 1 . Recycler 1 | 1 . . Watcher 2 | . 2 . Swarmer 3 | . . 3 Grunt 18 | . 14 4 Best Kill Streak 4 | 2 4 3 Combat Bots Only 4 | . 4 3 Max Kills in Single Turn 2 | 2 1 1 Gunslinging . | . . . Exploded . | . . . Melee . | . . . Uniques/NPCs Destroyed . | . . . Combat | -11 -10 -10 -------- Run | Yrd Mat Min Hostile Shots Fired 120 | . 84 36 Missed 24 | . 18 6 Damage Taken 1085 | . 800 285 Core 252 | . 147 105 Absorbed by Shields . | . . . Redirected to Shielding 50 | . 50 . Core Remaining (%) 100 | 100 . . Volleys Fired 97 | 2 73 22 Largest 2 | 2 2 2 Hottest 110 | 70 110 110 Shots Fired 178 | 4 141 33 Gun 131 | 4 105 22 Cannon 47 | . 36 11 Launcher . | . . . Special . | . . . Kinetic 47 | 2 45 . Thermal 131 | 2 96 33 Explosive . | . . . Electromagnetic . | . . . Robot Hit Streak 15 | 1 15 15 Robot Miss Streak 4 | 2 4 3 Penetration Max . | . . . Secondary Targets 1 | . 1 . Max Gunslinging Chain 1 | . 1 . Shots Hit Robots 124 | 2 98 24 Core Hits 45 | 3 31 11 Critical Kills . | . . . Critical Parts Destroyed . | . . . Critical Strikes 5 | . 4 1 Burn 5 | . 4 1 Melee Attacks . | . . . Impact . | . . . Slashing . | . . . Piercing . | . . . Sneak Attacks . | . . . Combat Hostiles . | . . . Follow-up Attacks . | . . . Damage Inflicted 1736 | 30 1371 335 Guns 1170 | 30 931 209 Cannons 554 | . 428 126 Explosions . | . . . Melee . | . . . Ramming 12 | . 12 . Kinetic 333 | 6 327 . Thermal 1391 | 24 1032 335 Explosive . | . . . Electromagnetic . | . . . Impact . | . . . Slashing . | . . . Piercing . | . . . Highest Corruption . | . . . Average Corruption . | . . . Corruption Purged . | . . . Corruption Blocked . | . . . Overload Shots . | . . . Overflow Damage . | . . . Projectiles . | . . . Explosions . | . . . Melee . | . . . Knockbacks . | . . . Impact . | . . . Kinetic . | . . . Secondary . | . . . Self-Inflicted Damage . | . . . Shots . | . . . Rammed 1 | . 1 . Targets Rammed 2 | . 2 . Kicked . | . . . Crushed 1 | . 1 . Highest Temperature 438 | 40 438 180 Average Temperature 112 | 20 119 76 Received Heat Transfer 627 | . 540 87 Effects 4 | . 4 . Shutdowns 2 | . 2 . Interference 1 | . 1 . Matter Decay 1 | . 1 . Siege Activations . | . . . Robots Corrupted . | . . . Combat Hostiles . | . . . Parts Fried . | . . . Impact Corruptions . | . . . Robots Melted . | . . . Combat Hostiles . | . . . Parts Melted 8 | . 5 3 Heat Transferred 3922 | 74 2923 925 Parts Sabotaged . | . . . Parts Stolen . | . . . Parts Stripped . | . . . Power Chain Reactions . | . . . Alert | -11 -10 -10 ------- Run | Yrd Mat Min Peak Influence 184 | 10 184 110 Initial 6 | . 6 . Average 42 | 3 49 35 Maximum Alert Level . | . . . Low Security (%) 100 | 100 100 100 Level 1 . | . . . Level 2 . | . . . Level 3 . | . . . Level 4 . | . . . Level 5 . | . . . High Security . | . . . Max Security . | . . . Squads Dispatched 5 | . 4 1 Investigation 4 | . 3 1 Extermination . | . . . Reinforcement 1 | . 1 . Assault . | . . . Garrison . | . . . Intercept . | . . . Searches Triggered . | . . . Construction Impeded . | . . . Haulers Reinforced . | . . . Active Scanning Responses . | . . . Cargo Convoy Interrupts . | . . . Stealth | -11 -10 -10 --------- Run | Yrd Mat Min Distress Signals 3 | . 3 . Communications Jammed . | . . . Distress Signals . | . . . Times Spotted 31 | . 23 8 Peak Tracking Total 4 | . 4 3 Tactical Retreats 1 | . 1 . Traps | -11 -10 -10 ------- Run | Yrd Mat Min Traps Triggered 1 | . 1 . Indirectly . | . . . Trap Hack Attempts . | . . . Triggered . | . . . Disarmed . | . . . Reprogrammed . | . . . Reused . | . . . Traps Extracted . | . . . Installed . | . . . Triggered . | . . . Machines | -11 -10 -10 ---------- Run | Yrd Mat Min Machines Disabled . | . . . Max in Single Turn . | . . . Machines Repaired . | . . . Machines Dismantled . | . . . Machines Sabotaged . | . . . Overloaded Fab Kills . | . . . Hacking | -11 -10 -10 --------- Run | Yrd Mat Min Machines Accessed 8 | . 6 2 Terminals 7 | . 5 2 Fabricators . | . . . Repair Stations . | . . . Recycling Units 1 | . 1 . Scanalyzers . | . . . Garrison Access . | . . . Total Hacks 30 | . 24 6 Successful 11 | . 10 1 Failed 19 | . 14 5 Catastrophic 1 | . 1 . Database Lockouts . | . . . Manual 23 | . 20 3 Terminals 27 | . 21 6 Fabricators . | . . . Repair Stations . | . . . Recycling Units 3 | . 3 . Scanalyzers . | . . . Garrison Access . | . . . Terminal Hacks 7 | . 6 1 Record 1 | . 1 . Robot Analysis 3 | . 2 1 Prototype ID Bank 1 | . 1 . Branch Access Points 1 | . 1 . Unreport Threat 1 | . 1 . Fabricator Hacks . | . . . Repair Station Hacks . | . . . Recycling Unit Hacks . | . . . Scanalyzer . | . . . Garrison Access Hacks . | . . . Unauthorized Hacks 4 | . 4 . Terminals 4 | . 4 . Botnet 4 | . 4 . Fabricators . | . . . Repair Stations . | . . . Recycling Units . | . . . Scanalyzers . | . . . Garrison Access . | . . . Data Cores Recovered . | . . . Used . | . . . Hacking Detections 8 | . 6 2 Full Trace Events 3 | . 2 1 Feedback Events . | . . . Feedback Blocked . | . . . Robot Schematics Acquired . | . . . Robots Built . | . . . Authchips . | . . . Time . | . . . Total Robot Build Rating . | . . . Part Schematics Acquired . | . . . Parts Built . | . . . Authchips . | . . . Time . | . . . Total Part Build Rating . | . . . Parts Repaired . | . . . Time . | . . . Parts Recycled . | . . . Recycled Matter . | . . . Retrieved Matter . | . . . Retrieved Components . | . . . Parts Scanalyzed . | . . . Part Schematics Acquired . | . . . Parts Damaged . | . . . Bothacking | -11 -10 -10 ------------ Run | Yrd Mat Min Used RIF Installer . | . . . Robots Hacked . | . . . Non-combat . | . . . Combat . | . . . Robot Hacks Applied . | . . . Relay Couplers Released . | . . . Fabnet Peak Effective % . | . . . Robots Rewired . | . . . Allies Hacked . | . . . Hacks Repelled . | . . . Allies | -11 -10 -10 -------- Run | Yrd Mat Min Total Allies . | . . . Largest Group . | . . . Highest-Rated Group . | . . . Highest-Rated Ally . | . . . Total Orders . | . . . Ally Attacks . | . . . Total Damage . | . . . Kills . | . . . Allies Corrupted . | . . . Allies Melted . | . . . Intel | -11 -10 -10 ------- Run | Yrd Mat Min Robot Analysis Total 3 | . 2 1 Derelict Logs Recovered 1 | . . 1 Drone Launches . | . . . Drone Recoveries . | . . . Exploration | -11 -10 -10 ------------- Run | Yrd Mat Min Turns Passed 1948 | 129 1272 547 Spaces Moved 968 | 71 595 302 Core 6 | 6 . . Treads 962 | 65 595 302 Legs . | . . . Wheels . | . . . Hover . | . . . Flight . | . . . Fastest Speed 50 | 50 160 160 Average Speed 159 | 150 160 160 Slowest Speed 160 | 160 160 160 Overloaded Moves . | . . . Propulsion Burnouts . | . . . Robots Hopped . | . . . Cave-ins Triggered . | . . . Exploration Rate (%) 54 | 4 93 67 Regions Visited 2 Branch Regions 1 Pre-discovered Areas 1 | . . 1 Known Exits Taken 1 | . 1 . Unknown Exits Taken 1 | 1 . . Scrap Searched . | . . . Spaces Dug . | . . . Terrain Destroyed . | . . . Melee . | . . . Projectile . | . . . AOE . | . . . Terrain Rammed . | . . . Walls Destroyed . | . . . Machines Disabled . | . . . Actions | -11 -10 -10 --------- Run | Yrd Mat Min Total 1195 | 86 775 334 Wait 82 | . 74 8 Move 966 | 70 594 302 Hop . | . . . Pick Up 17 | 7 9 1 Fast Attach 10 | 7 3 . Attach 1 | . 1 . Detach 2 | . 2 . Swap 9 | . 9 . Drop 9 | . 8 1 Fire 97 | 2 73 22 Melee . | . . . Ram . | . . . Kick . | . . . Crush 2 | . 2 . Escape Stasis . | . . . Rewire . | . . . Trap . | . . . Miscellaneous . | . . . Route ------- -11/Scrapyard -10/Materials (discovered 4 exits: [*Mat x3] / *Min) -10/Mines (discovered 1 exit: [*Mat]) History --------- Turn | Location | Event 8 | -11/Scrapyard | Discovered new exit (range 13) 130 | -11/Scrapyard | Entered Materials 310 | -10/Materials | Build established: Mutant 617 | -10/Materials | Discovered new exit (range 7) 779 | -10/Materials | Discovered new exit (range 14) 924 | -10/Materials | Core integrity fell below 50% 1041 | -10/Materials | Discovered new exit (range 15) 1248 | -10/Materials | Identified exit to Mines 1264 | -10/Materials | Discovered new exit (range 10) 1402 | -10/Materials | Entered Mines 1682 | -10/Mines | Core integrity fell below 20% 1917 | -10/Mines | Discovered new exit (range 11) 1949 | -10/Mines | Destroyed by G-34 Mercenary with Small Laser Last Messages --------------- 01565_ G-34 Mercenary heat spikes uncontrollably. 01565_ G-34 Mercenary overheating. 01566_ G-34 Mercenary destroyed. 01575_ Imp. Heat Sink melted. 01575_ G-47 Trooper destroyed. 01578_ K-01 Serf collects debris. 01581_ Dropped Ion Engine. 01581_ Acquired Lgt. Nuclear Core. 01671_ S-10 Pest destroyed. 01679_ Beam Cannon destroyed. 01691_ S-10 Pest destroyed. 01745_ T-07 Excavator is excavating. 01759_ Connecting with Terminal... 01771_ T-07 Excavator is excavating. 01917_ EXIT=FOUND 01941_ Heat Sink melted. 01941_ G-34 Mercenary destroyed. 01943_ K-01 Serf collects debris. 01945_ G-34 Mercenary destroyed. 01946_ K-01 Serf collects debris. Map ----- +----------------------------------------------------+ | | | | | | | | | | | | | | | | | | | | | | | | | | | | | | | | | | | | | ?????????????????????????????????????????????????? | | ?????????????????????????????????????????????????? | | ???????########?##########???????????????????????? | | ???????# ## #####???????????????????? | | ????????? ##??????????????????? | | ?????????????# k g < ##?????????????????? | | ??????????????# %= ## #???????????? | | ??????????????# ###@ ???????? | | ??????????????## ####?#### ??????? | | ???????????????## #????????# ???????? | | ###?????????????# #????????? ???????? | | #?????????????# #?????????? ????????? | | # #?????????????# #?????????? ????????? | | # #?????#####??##!!#??????????? ????????? | | # ####### ####= #??????????? ?????????? | | # ! ## ##???????????? ?????????? | | # ###### #????????????? ??????????? | | ##???## ! ##?????????????? ##??????????? | | ##???##########??????????????? #????????????? | | ##???????????????????????????? ??????????????? | | #??????????????#####????????????????????????? | | #?????????????## ##???????????????????????? | | ####??????????# #???????????????????????? | | # #?????????## #???????????????????????? | | ####### #?????????# #???????????????????????? | | ??????# ########### #????????????????????????? | | ??????# #?????????????????????????? | | ??????### ## ####### #?????????????????????????? | | ??????### ## #?????## ##?????????????????????????? | | ??????# ## #??????# #??????????????????????????? | | ??????# #### #??????# ######?????????????????????? | | ?????## #??# #??????# *% #?????????????????????? | +----------------------------------------------------+ Best States ------------- Heat Dissipation 35 Energy Generation 14 Energy Capacity 250 Matter Stores 300 Matter Capacity 300 Sight Range 16 Terrain Scan Range 16 Terrain Scan Density 10 Armor Coverage 150 Propulsion Shielding 33 Evasion (%) 40 Recoil Reduction 2 Item Schematics ----------------- None Robot Schematics ------------------ None Fabricated ------------ Nothing Alien Tech Used ----------------- None Achievements -------------- None Challenges ------------ None Game ------ Seed PortableRemoteMembrane Manual? 0 Play Time 00:16:40 Cumulative 55.2 hours Start 2024.05.07 @ 13:59:20 End 2024.05.07 @ 15:51:38 Sessions 3 Manual Loads 0 Difficulty Rogue Special Mode None Game No. 41 Rogue 37 Adventurer 0 Explorer 4 Win Type - Total 1 Types 1/0/0/0/0/0/0/0/0 Lore% 37 Gallery% 46 Achievement% 45 Wizard Run 0 Options --------- Layout 1 ASCII 0 Keyboard 1 Movement Vi Keybinds 0 Fullscreen 2 Font 20/SmallcapsGlow Map View 60x48 Zoom Use 0% Tactical HUD 1 Map Filters NONE Filters NONE Steam 1 RUN: 34ac71a3-6dfc-4544-9937-927e822febbb